lending/lending_fUSD_20240816
["ID","MTS","AMOUNT","RATE_DAILY","PERIOD"]
[335047564,1723786285291,-585.56,0.00023835,7]
[335047565,1723786285300,-697.56,0.00023835,7]
[335047566,1723786285309,-726.39,0.00023835,7]
[335047567,1723786285318,-1208.49,0.00023835,7]
[335047568,1723786285328,-1854.02,0.00023835,7]
[335047569,1723786285337,-500.0,0.00023835,7]
[335047570,1723786285346,-78.11697307,0.00023835,7]
[335047571,1723786285394,-507.44302693,0.00023835,7]
[335047572,1723786285403,-697.56,0.00023835,7]
[335047573,1723786285413,-888.26,0.00023835,7]
[335047574,1723786285423,-726.39,0.00023835,7]
[335047575,1723786285432,-1901.43,0.00023835,7]
[335047576,1723786285441,-1208.49,0.00023835,7]
[335047577,1723786285451,-1854.02,0.00023835,7]
[335047578,1723786285460,-500.0,0.00023835,7]
[335047579,1723786285470,-102.39881757,0.00023835,7]
[335047580,1723786285493,-483.16118243,0.00023835,7]
[335047581,1723786285501,-697.56,0.00023835,7]
[335047582,1723786285511,-888.26,0.00023835,7]
[335047583,1723786285521,-500.0,0.00023835,7]
[335047584,1723786285531,-1901.43,0.00023835,7]
[335047585,1723786285539,-1208.49,0.00023835,7]
[335047586,1723786285549,-726.39,0.00023835,7]
[335047587,1723786285558,-1854.02,0.00023835,7]
[335047588,1723786285568,-500.0,0.00023835,7]
[335047589,1723786285577,-585.56,0.00023835,7]
[335047590,1723786285586,-697.56,0.00023835,7]
[335047591,1723786285595,-888.34518176,0.00023835,7]
[335047592,1723786285604,-393.67967674,0.00023835,7]
[335047593,1723786285614,-1208.49,0.00023835,7]
[335047594,1723786285623,-173.15395908,0.00023835,7]
[335047595,1723786285655,-1728.27604092,0.00023835,7]
[335047596,1723786285664,-500.0,0.00023835,7]
[335047597,1723786285673,-1791.97889625,0.00023835,7]
[335047712,1723787431778,-5151.0318562,0.00010888,2]
[335047713,1723787431789,-130.44179878,0.00010888,2]
[335047714,1723787431800,-229.80470322,0.00010948,2]
[335047715,1723787431818,-70.19529678,0.00010948,2]
[335047716,1723787431828,-300.0,0.00010948,2]
[335047717,1723787431838,-6855.9929573,0.00010949,2]
[335047718,1723787431849,-2300.0,0.00010949,2]
[335047719,1723787431890,-17002.08875312,0.00010949,2]
[335047720,1723787431899,-4309.34660476,0.00010988,2]
[335047721,1723787431908,-150.0,0.00010988,2]
[335047722,1723787431918,-420.0,0.00012031,2]
[335047723,1723787431927,-155.0,0.00013001,2]
[335047724,1723787431937,-1192.44601834,0.00013086,3]
[335047725,1723787431947,-587.0,0.00013222,2]
[335047726,1723787431956,-202.96339221,0.00013688,2]
[335047727,1723787431965,-202.96339221,0.00013688,2]
[335047728,1723787431975,-536.44870464,0.00013698,2]
[335047729,1723787431985,-499.99,0.00013836,2]
[335047730,1723787431994,-150.0,0.00013836,2]
[335047731,1723787432005,-546.9938583,0.0001385,2]
[335047732,1723787432014,-348.26413265,0.00013851,2]
[335047733,1723787432024,-415.05274519,0.0001387,2]
[335047734,1723787432035,-180.87,0.00013973,2]
[335047735,1723787432045,-150.61,0.00013973,2]
[335047736,1723787432055,-729.56564802,0.00014234,2]
[335047737,1723787432066,-393.86,0.00014245,2]
[335047738,1723787432076,-303.95032792,0.00014398,2]
[335047739,1723787432087,-316.86944542,0.00014398,2]
[335047740,1723787432097,-1412.9139165,0.00014499,2]
[335047741,1723787432111,-736.87501724,0.00014509,2]
[335047742,1723787432126,-6721.2,0.00014517,2]
[335047744,1723787432137,-236.0,0.0001453,2]
[335047745,1723787432147,-2201.54,0.00014753,2]
[335047746,1723787432159,-150.99,0.00014782,2]
[335047747,1723787432170,-624.61862578,0.00015,2]
[335047748,1723787432181,-316.85,0.00018372,2]
[335047749,1723787432192,-150.0,0.000199,2]
[335047750,1723787432203,-500.0,0.00019999,2]
[335047751,1723787432214,-500.0,0.00019999,2]
[335047752,1723787432224,-1500.0,0.0002,2]
[335047753,1723787432235,-250.0,0.00020007,2]
[335047754,1723787432246,-442.57,0.00020262,2]
[335047755,1723787432256,-13780.1594177,0.00020262,2]
[335047756,1723787432269,-734.6075021,0.00020262,2]
[335047757,1723787432281,-3144.07254094,0.00020262,2]
[335047758,1723787432374,-903.92013879,0.00020262,2]
[335047759,1723787432391,-5337.24040047,0.00020262,2]
[335047760,1723787432400,-2751.0,0.00020267,2]
[335047761,1723787432410,-166.89,0.00020322,2]
[335047762,1723787432420,-200.0,0.00020401,2]
[335047763,1723787432431,-180.87,0.00020447,2]
[335047764,1723787432442,-773.24,0.00020465,2]
[335047765,1723787432452,-300.83,0.00020577,2]
[335047766,1723787432465,-1961.68,0.00020593,2]
[335047767,1723787432475,-240.38,0.00020634,2]
[335047768,1723787432485,-316.85,0.00020636,2]
[335047769,1723787432495,-710.02,0.00020672,2]
[335047770,1723787432504,-2624.84494957,0.00020712,2]
[335047771,1723787432515,-286.18192272,0.00020712,2]
[335047772,1723787432547,-5969.90312771,0.00020712,2]
[335047773,1723787432557,-799.64,0.00020749,2]
[335047774,1723787432567,-250.0,0.00020972,2]
[335047775,1723787432577,-1000.0,0.0002164,2]
[335047776,1723787432587,-227.15,0.00021918,2]
[335047777,1723787432596,-150.16,0.00021918,2]
[335047778,1723787432612,-500.0,0.00022191,2]
[335047779,1723787432621,-500.0,0.00022191,2]
[335047780,1723787432631,-2236.37131133,0.000227,2]
[335047781,1723787432641,-150.61,0.00022759,2]
[335047782,1723787432650,-500.0,0.00022835,2]
[335047783,1723787432660,-210.4,0.00022835,2]
[335047784,1723787432670,-500.0,0.00022835,2]
[335047785,1723787432679,-500.0,0.00022835,2]
[335047786,1723787432689,-500.0,0.00022835,2]
[335047787,1723787432698,-227.71,0.00022835,2]
[335047788,1723787432708,-316.85,0.000229,2]
[335047789,1723787432719,-321.74986141,0.00023,5]
[335047790,1723787432728,-12289.26872089,0.00023,3]
[335047791,1723787432738,-300.0,0.00023014,2]
[335047792,1723787432749,-852.9,0.00023014,2]
[335047793,1723787432759,-240.38,0.00023213,2]
[335047794,1723787432769,-150.16,0.00023483,2]
[335047795,1723787432778,-991.0,0.000235,6]
[335047796,1723787432788,-500.0,0.00023561,7]
[335047797,1723787432798,-500.0,0.00023561,7]
[335047798,1723787432807,-174.51,0.00023561,7]
[335047799,1723787432817,-150.0,0.00023585,2]
[335047800,1723787432827,-150.0,0.00023591,2]
[335047801,1723787432836,-150.0,0.00023612,2]
[335047802,1723787432846,-150.0,0.00023613,2]
[335047803,1723787432855,-150.0,0.00023619,2]
[335047804,1723787432867,-150.0,0.00023639,2]
[335047805,1723787432876,-150.0,0.00023644,2]
[335047806,1723787432885,-150.0,0.00023645,2]
[335047807,1723787432895,-150.0,0.00023645,2]
[335047808,1723787432904,-209.44699376,0.00023646,2]
[335047809,1723787432914,-150.0,0.00023667,2]
[335047810,1723787432923,-150.0,0.00023686,2]
[335047811,1723787432932,-150.0,0.00023697,2]
[335047812,1723787432942,-150.0,0.00023713,2]
[335047813,1723787432952,-206.41280318,0.00023715,2]
[335047814,1723787432961,-7500.0,0.00023715,2]
[335047815,1723787432971,-2023.9155,0.00023725,2]
[335047816,1723787432980,-3236.6523,0.00023725,2]
[335047817,1723787432989,-173.64546013,0.00023729,2]
[335047818,1723787432999,-500.0,0.0002373,2]
[335047819,1723787433009,-500.0,0.0002373,2]
[335047820,1723787433018,-206.41280318,0.00023735,2]
[335047821,1723787433028,-5567.4810095,0.00023735,2]
[335047822,1723787433037,-162.26198223,0.00023735,2]
[335047823,1723787433047,-189.03703262,0.00023735,2]
[335047824,1723787433057,-500.0,0.00023738,2]
[335047825,1723787433066,-500.0,0.00023747,2]
[335047826,1723787433077,-500.0,0.00023756,2]
[335047827,1723787433087,-500.0,0.00023765,2]
[335047828,1723787433097,-150.0,0.00023765,2]
[335047829,1723787433106,-500.0,0.00023774,2]
[335047830,1723787433118,-500.0,0.00023782,2]
[335047831,1723787433128,-500.0,0.00023791,2]
[335047832,1723787433137,-150.0,0.00023799,2]
[335047833,1723787433146,-2223.39,0.00023799,2]
[335047834,1723787433156,-2000.0,0.000238,2]
[335047835,1723787433166,-220.0,0.000238,12]
[335047836,1723787433175,-495.0,0.000238,7]
[335047837,1723787433185,-495.0,0.000238,7]
[335047838,1723787433194,-991.0,0.000238,7]
[335047839,1723787433204,-439.0,0.000238,2]
[335047840,1723787433215,-10800.0,0.000238,7]
[335047841,1723787433224,-155.55336986,0.000238,3]
[335047842,1723787433234,-193.0,0.000238,7]
[335047843,1723787433243,-315.2,0.000238,2]
[335047844,1723787433253,-500.0,0.000238,2]
[335047845,1723787433262,-196.22594564,0.000238,14]
[335047846,1723787433272,-150.0,0.00023808,4]
[335047847,1723787433281,-150.0,0.00023808,4]
[335047848,1723787433291,-150.0,0.00023808,4]
[335047849,1723787433300,-150.0,0.00023808,4]
[335047850,1723787433310,-768.58,0.00023815,2]
[335047851,1723787433319,-86417.3483215,0.00023815,3]
[335047852,1723787433329,-63349.0962405,0.00023815,3]
[335047853,1723787433338,-2533.96384962,0.00023822,3]
[335047854,1723787433731,-10135.8553985,0.00023825,3]
[335047855,1723787433764,-154.29,0.00023825,2]
[335047856,1723787433782,-18070.59440075,0.00023825,3]
[335047857,1723787433795,-2201.11639625,0.00023825,3]
[335047858,1723787433805,-3918.35829843,0.00023832,2]
[335047859,1723787433815,-173.24796933,0.00023834,2]
[335047860,1723787433824,-150.48020529,0.00023834,2]
[335047861,1723787433834,-610.49306932,0.00023835,2]
[335047862,1723787433843,-154.735529,0.00023835,7]
[335047863,1723787433852,-154.735529,0.00023835,7]
[335047864,1723787433862,-154.735529,0.00023835,7]
[335047865,1723787433872,-154.735529,0.00023835,7]
[335047866,1723787433882,-154.735529,0.00023835,7]
[335047867,1723787433891,-154.735529,0.00023835,7]
[335047868,1723787433901,-154.735529,0.00023835,7]
[335047869,1723787433911,-154.735529,0.00023835,7]
[335047870,1723787433920,-154.735529,0.00023835,7]
[335047871,1723787433929,-154.735529,0.00023835,7]
[335047872,1723787433939,-154.735529,0.00023835,7]
[335047873,1723787433948,-154.735529,0.00023835,7]
[335047874,1723787433958,-154.735529,0.00023835,7]
[335047875,1723787433968,-154.735529,0.00023835,7]
[335047876,1723787433977,-154.735529,0.00023835,7]
[335047877,1723787433987,-156.27444,0.00023835,7]
[335047878,1723787433996,-156.27444,0.00023835,7]
[335047879,1723787434006,-156.27444,0.00023835,7]
[335047880,1723787434016,-156.27444,0.00023835,7]
[335047881,1723787434025,-156.27444,0.00023835,7]
[335047882,1723787434034,-164.196944,0.00023835,7]
[335047883,1723787434044,-164.196944,0.00023835,7]
[335047884,1723787434054,-164.196944,0.00023835,7]
[335047885,1723787434064,-164.196944,0.00023835,7]
[335047886,1723787434073,-156.27444,0.00023835,7]
[335047887,1723787434083,-164.196944,0.00023835,7]
[335047888,1723787434094,-156.27444,0.00023835,7]
[335047889,1723787434103,-164.196944,0.00023835,7]
[335047890,1723787434114,-156.27444,0.00023835,7]
[335047891,1723787434123,-164.196944,0.00023835,7]
[335047892,1723787434133,-156.27444,0.00023835,7]
[335047893,1723787434142,-164.196944,0.00023835,7]
[335047894,1723787434152,-156.27444,0.00023835,7]
[335047895,1723787434162,-164.196944,0.00023835,7]
[335047896,1723787434171,-156.27444,0.00023835,7]
[335047897,1723787434181,-164.196944,0.00023835,7]
[335047898,1723787434190,-156.27444,0.00023835,7]
[335047899,1723787434200,-156.27444,0.00023835,7]
[335047900,1723787434210,-144.7925116,0.00023835,7]
[335047901,1723787434283,-11.4819284,0.00023835,7]
[335047902,1723787434294,-156.27444,0.00023835,7]
[335047903,1723787434304,-156.685778,0.00023835,7]
[335047904,1723787434313,-253.750423,0.00023835,7]
[335047905,1723787434323,-167.401744,0.00023835,7]
[335047906,1723787434333,-151.0,0.00023835,7]
[335047907,1723787434342,-272.229988,0.00023835,7]
[335047908,1723787434351,-275.793949,0.00023835,7]
[335047909,1723787434362,-154.456777,0.00023835,7]
[335047910,1723787434373,-156.241626,0.00023835,7]
[335047911,1723787434387,-181.89991337,0.00023835,2]
[335047912,1723787434398,-154.456777,0.00023835,7]
[335047913,1723787434407,-156.241626,0.00023835,7]
[335047914,1723787434417,-500.0,0.00023835,7]
[335047915,1723787434427,-553.62720499,0.00023835,50]
[335047916,1723787434436,-500.0,0.00023835,7]
[335047917,1723787434446,-500.0,0.00023835,7]
[335047918,1723787434455,-500.0,0.00023835,7]
[335047919,1723787434465,-500.0,0.00023835,7]
[335047920,1723787434475,-500.0,0.00023835,7]
[335047921,1723787434484,-500.0,0.00023835,7]
[335047922,1723787434493,-421.21983666,0.00023835,7]
[335047923,1723787434503,-252.81112,0.00023835,7]
[335047924,1723787434512,-500.0,0.00023835,7]
[335047925,1723787434522,-70.67672133,0.00023835,7]
[335047926,1723787434574,-429.32327867,0.00023835,7]
[335047927,1723787434584,-499.80129107,0.00023835,7]
[335047928,1723787434595,-573.1560957,0.00023835,2]
[335047929,1723787434605,-500.0,0.00023835,7]
[335047930,1723787434615,-500.0,0.00023835,7]
[335047931,1723787434625,-385.31373456,0.00023835,7]
[335047932,1723787434644,-114.68626544,0.00023835,7]
[335047933,1723787434654,-281.56265945,0.00023835,7]
[335047934,1723787434668,-218.43734055,0.00023835,7]
[335047935,1723787434677,-500.0,0.00023835,7]
[335047936,1723787434687,-263.29160348,0.00023835,7]
[335047937,1723787434696,-167.59123048,0.00023835,7]
[335047938,1723787434705,-57.30887177,0.00023835,7]
[335047939,1723787434724,-345.5,0.00023835,7]
[335047940,1723787434737,-97.19112823,0.00023835,7]
[335047941,1723787434746,-208.09021377,0.00023835,7]
[335047963,1723787438260,-461.72013886,0.00014398,2]
[335047964,1723787438269,-150.296,0.00017344,2]
[335047965,1723787438279,-189.03034647,0.00023835,7]
[335047966,1723787438287,-500.0,0.00023835,7]
[335047967,1723787438296,-500.0,0.00023835,7]
[335047968,1723787438305,-500.0,0.00023835,7]
[335047969,1723787438314,-500.0,0.00023835,7]
[335047970,1723787438323,-500.0,0.00023835,7]
[335047971,1723787438332,-500.0,0.00023835,7]
[335047972,1723787438341,-500.0,0.00023835,7]
[335047973,1723787438351,-500.0,0.00023835,7]
[335047974,1723787438360,-500.0,0.00023835,7]
[335047975,1723787438369,-500.0,0.00023835,7]
[335047976,1723787438379,-500.0,0.00023835,7]
[335047977,1723787438392,-500.0,0.00023835,7]
[335047978,1723787438401,-500.0,0.00023835,7]
[335047979,1723787438411,-500.0,0.00023835,7]
[335047980,1723787438421,-500.0,0.00023835,7]
[335047981,1723787438431,-500.0,0.00023835,7]
[335047982,1723787438441,-500.0,0.00023835,7]
[335047983,1723787438451,-500.0,0.00023835,7]
[335047984,1723787438461,-500.0,0.00023835,7]
[335047985,1723787438473,-500.0,0.00023835,7]
[335047986,1723787438482,-500.0,0.00023835,7]
[335047987,1723787438492,-553.36034756,0.00023835,7]
[335047988,1723787438502,-500.0,0.00023835,7]
[335047989,1723787438512,-500.0,0.00023835,7]
[335047990,1723787438522,-500.0,0.00023835,7]
[335047991,1723787438532,-500.0,0.00023835,7]
[335047992,1723787438541,-500.0,0.00023835,7]
[335047993,1723787438551,-500.0,0.00023835,7]
[335047994,1723787438561,-500.0,0.00023835,7]
[335047995,1723787438570,-500.0,0.00023835,7]
[335047996,1723787438580,-500.0,0.00023835,7]
[335047997,1723787438590,-500.0,0.00023835,7]
[335047998,1723787438599,-500.0,0.00023835,7]
[335047999,1723787438609,-500.0,0.00023835,7]
[335048000,1723787438623,-317.8079455,0.00023835,7]
[335048001,1723787438632,-560.01,0.00023835,7]
[335048002,1723787438642,-560.01,0.00023835,7]
[335048003,1723787438651,-560.01,0.00023835,7]
[335048004,1723787438661,-560.01,0.00023835,7]
[335048005,1723787438671,-560.01,0.00023835,7]
[335048006,1723787438680,-560.01,0.00023835,7]
[335048007,1723787438689,-560.01,0.00023835,7]
[335048008,1723787438698,-560.01,0.00023835,7]
[335048009,1723787438708,-560.01,0.00023835,7]
[335048010,1723787438717,-560.01,0.00023835,7]
[335048011,1723787438726,-560.01,0.00023835,7]
[335048012,1723787438735,-560.01,0.00023835,7]
[335048013,1723787438746,-560.01,0.00023835,7]
[335048014,1723787438755,-560.01,0.00023835,7]
[335048015,1723787438764,-560.01,0.00023835,7]
[335048016,1723787438773,-560.01,0.00023835,7]
[335048017,1723787438782,-560.01,0.00023835,7]
[335048018,1723787438792,-560.01,0.00023835,7]
[335048019,1723787438800,-235.88675666,0.00023835,7]
[335048020,1723787438892,-324.12324334,0.00023835,7]
[335048021,1723787438901,-339.16380014,0.00023835,7]
[335048022,1723787438922,-220.84619986,0.00023835,7]
[335048023,1723787438931,-560.01,0.00023835,7]
[335048024,1723787438940,-560.01,0.00023835,7]
[335048025,1723787438949,-560.01,0.00023835,7]
[335048026,1723787438959,-560.13,0.00023835,7]
[335048027,1723787438968,-500.0,0.00023835,7]
[335048028,1723787438977,-500.0,0.00023835,7]
[335048029,1723787438987,-500.0,0.00023835,7]
[335048030,1723787438996,-500.0,0.00023835,7]
[335048031,1723787439005,-500.0,0.00023835,7]
[335048032,1723787439014,-500.0,0.00023835,7]
[335048033,1723787439023,-500.0,0.00023835,7]
[335048034,1723787439033,-500.0,0.00023835,7]
[335048035,1723787439042,-500.0,0.00023835,7]
[335048036,1723787439052,-500.0,0.00023835,7]
[335048037,1723787439061,-500.0,0.00023835,7]
[335048038,1723787439071,-500.0,0.00023835,7]
[335048039,1723787439081,-263.25080467,0.00023835,7]
[335048040,1723787439206,-236.74919533,0.00023835,7]
[335048041,1723787439216,-500.0,0.00023835,7]
[335048042,1723787439226,-500.0,0.00023835,7]
[335048043,1723787439236,-118.27896466,0.00023835,7]
[335048044,1723787439252,-381.72103534,0.00023835,7]
[335048045,1723787439261,-500.0,0.00023835,7]
[335048046,1723787439270,-500.0,0.00023835,7]
[335048047,1723787439279,-500.0,0.00023835,7]
[335048048,1723787439288,-500.0,0.00023835,7]
[335048049,1723787439297,-393.32,0.00023835,7]
[335048050,1723787439307,-500.0,0.00023835,7]
[335048051,1723787439316,-500.0,0.00023835,7]
[335048052,1723787439327,-500.0,0.00023835,7]
[335048053,1723787439336,-500.0,0.00023835,7]
[335048054,1723787439344,-500.0,0.00023835,7]
[335048055,1723787439354,-500.0,0.00023835,7]
[335048056,1723787439366,-500.0,0.00023835,7]
[335048057,1723787439375,-500.0,0.00023835,7]
[335048058,1723787439386,-500.0,0.00023835,7]
[335048059,1723787439395,-500.0,0.00023835,7]
[335048060,1723787439405,-301.67896226,0.00023835,7]
[335048061,1723787439440,-198.32103774,0.00023835,7]
[335048062,1723787439449,-104.21966306,0.00023835,7]
[335048063,1723787439522,-395.78033694,0.00023835,7]
[335048064,1723787439531,-500.0,0.00023835,7]
[335048065,1723787439541,-500.0,0.00023835,7]
[335048066,1723787439550,-500.0,0.00023835,7]
[335048067,1723787439559,-500.0,0.00023835,7]
[335048068,1723787439568,-500.0,0.00023835,7]
[335048069,1723787439578,-500.0,0.00023835,7]
[335048070,1723787439587,-500.0,0.00023835,7]
[335048071,1723787439596,-500.0,0.00023835,7]
[335048072,1723787439605,-500.0,0.00023835,7]
[335048073,1723787439616,-500.0,0.00023835,7]
[335048074,1723787439626,-500.0,0.00023835,7]
[335048075,1723787439635,-500.0,0.00023835,7]
[335048076,1723787439644,-201.52,0.00023835,7]
[335048077,1723787439653,-500.0,0.00023835,7]
[335048078,1723787439663,-500.0,0.00023835,7]
[335048079,1723787439672,-221.29966305,0.00023835,7]
[335048084,1723787439708,-278.70033695,0.00023835,7]
[335048086,1723787439718,-500.0,0.00023835,7]
[335048088,1723787439728,-500.0,0.00023835,7]
[335048089,1723787439737,-500.0,0.00023835,7]
[335048090,1723787439747,-500.0,0.00023835,7]
[335048091,1723787439756,-500.0,0.00023835,7]
[335048092,1723787439766,-500.0,0.00023835,7]
[335048093,1723787439776,-500.0,0.00023835,7]
[335048094,1723787439785,-500.0,0.00023835,7]
[335048095,1723787439795,-197.56310118,0.00023835,7]
[335048096,1723787439804,-500.0,0.00023835,7]
[335048097,1723787439813,-1058.57,0.00023835,7]
[335048099,1723787439822,-1058.57,0.00023835,7]
[335048101,1723787439832,-1058.57,0.00023835,7]
[335048103,1723787439841,-1058.57,0.00023835,7]
[335048105,1723787439851,-1058.57,0.00023835,7]
[335048107,1723787439860,-1058.57,0.00023835,7]
[335048109,1723787439869,-1058.57,0.00023835,7]
[335048111,1723787439879,-1058.57,0.00023835,7]
[335048113,1723787439888,-1058.57,0.00023835,7]
[335048114,1723787439898,-1058.57,0.00023835,7]
[335048116,1723787439909,-500.0,0.00023835,7]
[335048118,1723787439918,-1058.57,0.00023835,7]
[335048120,1723787439927,-1058.57,0.00023835,7]
[335048122,1723787439936,-1058.57,0.00023835,7]
[335048124,1723787439946,-500.0,0.00023835,7]
[335048126,1723787439955,-1058.57,0.00023835,7]
[335048128,1723787439964,-500.0,0.00023835,7]
[335048130,1723787439973,-1058.57,0.00023835,7]
[335048132,1723787439983,-500.0,0.00023835,7]
[335048134,1723787439992,-1058.57,0.00023835,7]
[335048135,1723787440002,-500.0,0.00023835,7]
[335048137,1723787440011,-1058.57,0.00023835,7]
[335048139,1723787440021,-500.0,0.00023835,7]
[335048141,1723787440030,-1058.57,0.00023835,7]
[335048143,1723787440040,-500.0,0.00023835,7]
[335048145,1723787440049,-348.84,0.00023835,7]
[335048147,1723787440058,-1058.57,0.00023835,7]
[335048149,1723787440068,-1058.57,0.00023835,7]
[335048150,1723787440077,-1058.57,0.00023835,7]
[335048151,1723787440086,-1058.57,0.00023835,7]
[335048152,1723787440095,-407.08818406,0.00023835,7]
[335048153,1723787440170,-651.48181594,0.00023835,7]
[335048154,1723787440180,-1058.61,0.00023835,7]
[335048155,1723787440189,-500.0,0.00023835,7]
[335048156,1723787440198,-500.0,0.00023835,7]
[335048157,1723787440208,-500.0,0.00023835,7]
[335048158,1723787440218,-500.0,0.00023835,7]
[335048159,1723787440227,-500.0,0.00023835,7]
[335048160,1723787440237,-500.0,0.00023835,7]
[335048161,1723787440246,-500.0,0.00023835,7]
[335048162,1723787440255,-418.7617779,0.00023835,7]
[335048163,1723787440265,-500.0,0.00023835,7]
[335048164,1723787440274,-500.0,0.00023835,7]
[335048165,1723787440284,-500.0,0.00023835,7]
[335048166,1723787440293,-500.0,0.00023835,7]
[335048167,1723787440303,-500.0,0.00023835,7]
[335048168,1723787440312,-500.0,0.00023835,7]
[335048169,1723787440322,-500.0,0.00023835,7]
[335048170,1723787440331,-500.0,0.00023835,7]
[335048171,1723787440340,-500.0,0.00023835,7]
[335048172,1723787440350,-500.0,0.00023835,7]
[335048173,1723787440361,-500.0,0.00023835,7]
[335048174,1723787440370,-500.0,0.00023835,7]
[335048175,1723787440383,-500.0,0.00023835,7]
[335048176,1723787440392,-500.0,0.00023835,7]
[335048177,1723787440401,-500.0,0.00023835,7]
[335048178,1723787440411,-500.0,0.00023835,7]
[335048179,1723787440420,-500.0,0.00023835,7]
[335048180,1723787440430,-500.0,0.00023835,7]
[335048181,1723787440584,-500.0,0.00023835,7]
[335048182,1723787440594,-500.0,0.00023835,7]
[335048183,1723787440603,-500.0,0.00023835,7]
[335048184,1723787440615,-500.0,0.00023835,7]
[335048185,1723787440624,-500.0,0.00023835,7]
[335048186,1723787440633,-456.74644966,0.00023835,7]
[335048187,1723787440694,-43.25355034,0.00023835,7]
[335048188,1723787440703,-500.0,0.00023835,7]
[335048189,1723787440713,-500.0,0.00023835,7]
[335048190,1723787440722,-500.0,0.00023835,7]
[335048191,1723787440732,-500.0,0.00023835,7]
[335048192,1723787440741,-500.0,0.00023835,7]
[335048193,1723787440751,-500.0,0.00023835,7]
[335048194,1723787440760,-500.0,0.00023835,7]
[335048195,1723787440770,-500.0,0.00023835,7]
[335048196,1723787440779,-156.55,0.00023835,7]
[335048197,1723787440789,-715.27,0.00023835,7]
[335048198,1723787440798,-715.27,0.00023835,7]
[335048199,1723787440807,-500.0,0.00023835,7]
[335048200,1723787440817,-715.27,0.00023835,7]
[335048201,1723787440826,-500.0,0.00023835,7]
[335048202,1723787440835,-715.27,0.00023835,7]
[335048203,1723787440844,-500.0,0.00023835,7]
[335048204,1723787440853,-715.27,0.00023835,7]
[335048205,1723787440864,-500.0,0.00023835,7]
[335048206,1723787440873,-715.27,0.00023835,7]
[335048207,1723787440883,-500.0,0.00023835,7]
[335048208,1723787440892,-715.27,0.00023835,7]
[335048209,1723787440902,-500.0,0.00023835,7]
[335048210,1723787440911,-715.27,0.00023835,7]
[335048211,1723787440920,-715.27,0.00023835,7]
[335048212,1723787440929,-500.0,0.00023835,7]
[335048213,1723787440938,-500.0,0.00023835,7]
[335048214,1723787440948,-500.0,0.00023835,7]
[335048215,1723787440957,-500.0,0.00023835,7]
[335048216,1723787440966,-500.0,0.00023835,7]
[335048217,1723787440975,-500.0,0.00023835,7]
[335048218,1723787440984,-715.27,0.00023835,7]
[335048219,1723787440994,-500.0,0.00023835,7]
[335048220,1723787441003,-500.0,0.00023835,7]
[335048221,1723787441012,-715.27,0.00023835,7]
[335048222,1723787441022,-500.0,0.00023835,7]
[335048223,1723787441031,-500.0,0.00023835,7]
[335048224,1723787441040,-715.27,0.00023835,7]
[335048225,1723787441049,-500.0,0.00023835,7]
[335048226,1723787441058,-500.0,0.00023835,7]
[335048227,1723787441068,-715.27,0.00023835,7]
[335048228,1723787441077,-500.0,0.00023835,7]
[335048229,1723787441086,-500.0,0.00023835,7]
[335048230,1723787441096,-715.27,0.00023835,7]